bitfinex-derivatives/quotes_BTCF0:USTF0_20240925
["timestamp","ask_amount","ask_price","bid_price","bid_amount"]
[1727298366435,0.48129808,63517.0,63516.0,0.078724]
[1727298366634,0.56001523,63517.0,63516.0,0.078724]
[1727298367836,0.56701523,63517.0,63516.0,0.079724]
[1727298368044,0.56701523,63517.0,63516.0,0.080724]
[1727298369339,0.70833468,63517.0,63516.0,0.080724]
[1727298373354,0.56701523,63517.0,63516.0,0.080724]
[1727298374442,0.53362193,63517.0,63516.0,0.080724]
[1727298374647,0.446523,63517.0,63516.0,0.080724]
[1727298381464,0.47993161,63517.0,63516.0,0.080724]
[1727298381867,0.11913161,63517.0,63516.0,0.080724]
[1727298383278,0.12913161,63517.0,63516.0,0.080724]
[1727298383576,0.24099865,63517.0,63516.0,0.080724]
[1727298384078,0.24099865,63517.0,63516.0,0.078724]
[1727298384079,0.22899865,63517.0,63516.0,0.078724]
[1727298385368,0.11913161,63517.0,63516.0,0.078724]
[1727298385575,0.11713161,63517.0,63516.0,0.078724]
[1727298385871,0.11913161,63517.0,63516.0,0.078724]
[1727298386274,0.19581469,63517.0,63516.0,0.078724]
[1727298386465,0.15801999,63517.0,63516.0,0.078724]
[1727298389478,0.1505646,63517.0,63516.0,0.078724]
[1727298389670,0.007,63517.0,63516.0,0.14125105]
[1727298389979,0.023,63517.0,63516.0,0.14125105]
[1727298390186,0.023,63517.0,63516.0,0.078724]
[1727298390680,0.021,63517.0,63516.0,0.14125105]
[1727298392075,0.018,63517.0,63516.0,0.14125105]
[1727298392270,0.019,63517.0,63516.0,0.439524]
[1727298395677,0.019,63517.0,63516.0,0.518248]
[1727298395980,0.016,63517.0,63516.0,0.51792422]
[1727298396282,0.019,63517.0,63516.0,0.62456732]
[1727298396668,0.019,63517.0,63516.0,0.439524]
[1727298397076,0.09180485,63517.0,63516.0,0.441524]
[1727298398692,0.08980485,63517.0,63516.0,0.441524]
[1727298400382,0.16086797,63517.0,63516.0,0.441524]
[1727298400583,0.01524358,63517.0,63516.0,0.72680055]
[1727298400887,0.11017835,63521.0,63516.0,0.62367726]
[1727298401086,0.11017835,63520.0,63516.0,0.46592197]
[1727298401384,0.11017835,63519.0,63516.0,0.441524]
[1727298402391,0.001,63521.0,63519.0,0.07872]
[1727298402392,0.11017835,63520.0,63519.0,0.07872]
[1727298404081,0.11017835,63520.0,63519.0,0.43952]
[1727298404587,0.11317835,63520.0,63519.0,0.43952]
[1727298404786,0.004,63520.0,63519.0,0.43952]
[1727298410490,0.004,63520.0,63519.0,0.48641957]
[1727298411399,0.004,63520.0,63519.0,0.43952]
[1727298411591,0.03754924,63520.0,63519.0,0.43952]
[1727298411795,0.07650148,63520.0,63519.0,0.43952]
[1727298412896,0.20241055,63520.0,63519.0,0.43952]
[1727298413196,0.07650148,63520.0,63519.0,0.43952]
[1727298413794,0.12991211,63520.0,63519.0,0.43952]
[1727298413990,0.20241359,63520.0,63519.0,0.43952]
[1727298415394,0.20242436,63520.0,63519.0,0.43952]
[1727298415700,0.07650148,63520.0,63519.0,0.43952]
[1727298418292,0.004,63520.0,63519.0,0.43952]
[1727298418709,0.12482349,63520.0,63519.0,0.43952]
[1727298419703,0.004,63520.0,63519.0,0.43952]
[1727298422501,0.082719,63520.0,63519.0,0.43952]
[1727298425893,0.082719,63520.0,63519.0,0.07872]
[1727298428609,0.115919,63520.0,63519.0,0.07872]
[1727298430799,0.115919,63520.0,63519.0,0.12567754]
[1727298431106,0.115919,63520.0,63519.0,0.07872]
[1727298431306,0.115919,63520.0,63519.0,0.12567745]
[1727298432410,0.194638,63520.0,63519.0,0.04695745]
[1727298432797,0.27336466,63520.0,63519.0,0.04695745]
[1727298433610,0.15744,63519.0,63518.0,0.04695745]
[1727298433811,0.078721,63518.0,63517.0,0.3608]
[1727298434008,0.2224391,63518.0,63517.0,0.3608]
[1727298435905,0.2224391,63518.0,63517.0,0.3618]
[1727298436515,0.2234391,63518.0,63517.0,0.3618]
[1727298438013,0.22341344,63518.0,63517.0,0.3618]
[1727298440408,0.11317461,63518.0,63517.0,0.3618]
[1727298441120,0.22341344,63518.0,63517.0,0.3618]
[1727298441507,0.26215112,63518.0,63517.0,0.001]
[1727298441711,0.079721,63518.0,63517.0,0.06361514]
[1727298441908,0.079721,63518.0,63517.0,0.001]
[1727298442112,0.079721,63518.0,63517.0,0.06361514]
[1727298442419,0.079721,63518.0,63517.0,0.001]
[1727298442919,0.079721,63518.0,63517.0,0.06361514]
[1727298443421,0.158442,63518.0,63517.0,0.06361514]
[1727298444616,0.158442,63518.0,63517.0,0.001]
[1727298444822,0.158442,63518.0,63517.0,0.06361514]
[1727298445024,0.158442,63518.0,63517.0,0.001]
[1727298453225,0.158442,63518.0,63517.0,0.0479506]
[1727298453421,0.158442,63518.0,63517.0,0.001]
[1727298456714,0.19169533,63518.0,63517.0,0.001]
[1727298463719,0.158442,63518.0,63517.0,0.001]
[1727298469035,0.158442,63518.0,63517.0,0.04796777]
[1727298469230,0.079721,63518.0,63517.0,0.12669077]
[1727298469440,0.079721,63518.0,63517.0,0.04796777]
[1727298469633,0.079721,63518.0,63517.0,0.001]
[1727298471431,0.079721,63518.0,63517.0,0.079723]
[1727298471839,0.34123362,63518.0,63517.0,0.079723]
[1727298472238,0.19991417,63518.0,63517.0,0.079723]
[1727298472541,0.3416621,63518.0,63517.0,0.079723]
[1727298473429,0.19991417,63518.0,63517.0,0.079723]
[1727298474236,0.1999117,63518.0,63517.0,0.079723]
[1727298474537,0.12119057,63518.0,63517.0,0.079723]
[1727298474740,0.0728645,63518.0,63517.0,0.110523]
[1727298478939,0.001,63518.0,63517.0,0.110523]
[1727298486846,0.07270068,63518.0,63517.0,0.110523]
[1727298488449,0.08161068,63518.0,63517.0,0.110523]
[1727298488953,0.08161068,63518.0,63517.0,0.111523]
[1727298490943,0.08060611,63518.0,63517.0,0.111523]
[1727298491144,0.27069037,63518.0,63517.0,0.111523]
[1727298493959,0.0215,63518.0,63517.0,0.111523]
[1727298496458,0.0215,63518.0,63517.0,0.15849884]
[1727298496651,0.02523,63518.0,63517.0,0.15849884]
[1727298498048,0.03782,63518.0,63517.0,0.15849884]
[1727298498959,0.03782,63518.0,63517.0,0.23722184]
[1727298502959,0.03782,63518.0,63517.0,0.59803665]
[1727298503262,0.03782,63518.0,63517.0,0.551046]
[1727298505970,0.07873575,63525.0,63524.0,0.078714]
[1727298506257,0.078712,63526.0,63525.0,0.078713]
[1727298506463,0.10165992,63526.0,63525.0,0.12568047]
[1727298507361,0.10165992,63526.0,63525.0,0.078713]
[1727298507754,0.10529992,63526.0,63525.0,0.078713]
[1727298508757,0.11329992,63526.0,63525.0,0.079713]
[1727298509063,0.18557979,63526.0,63525.0,0.079713]
[1727298509360,0.18557979,63526.0,63525.0,0.080713]
[1727298509361,0.20516979,63526.0,63525.0,0.080713]
[1727298510556,0.20514284,63526.0,63525.0,0.080713]
[1727298511363,0.16632414,63526.0,63525.0,0.080713]
[1727298513161,0.20514097,63526.0,63525.0,0.080713]
[1727298515162,0.20014097,63526.0,63525.0,0.079713]
[1727298516067,0.19914097,63526.0,63525.0,0.079713]
[1727298516270,0.19314097,63526.0,63525.0,0.078713]
[1727298516960,0.11988992,63526.0,63525.0,0.078713]
[1727298524071,0.19208567,63526.0,63525.0,0.078713]
[1727298529967,0.27917193,63526.0,63525.0,0.078713]
[1727298530167,0.31795991,63526.0,63525.0,0.078713]
[1727298530368,0.19208567,63526.0,63525.0,0.078713]
[1727298531975,0.11988992,63526.0,63525.0,0.12568047]
[1727298532368,0.11988992,63526.0,63525.0,0.078713]
[1727298533172,0.11988992,63526.0,63525.0,0.12566986]
[1727298533372,0.11988992,63526.0,63525.0,0.078713]
[1727298535476,0.11988992,63526.0,63525.0,0.14136142]
[1727298538393,0.19857584,63526.0,63525.0,0.078713]
[1727298538971,0.11988992,63526.0,63525.0,0.078713]
[1727298542276,0.078714,63524.0,63522.0,0.43920022]
[1727298542486,0.078714,63524.0,63523.0,0.078714]
[1727298542985,0.078714,63524.0,63523.0,0.26411563]
[1727298543577,0.078714,63524.0,63523.0,0.26611563]
[1727298544178,0.078714,63524.0,63523.0,0.18779]
[1727298544179,0.082354,63524.0,63523.0,0.18779]
[1727298544682,0.082354,63524.0,63523.0,0.2661138]
[1727298544990,0.083354,63524.0,63523.0,0.18779]
[1727298545588,0.083354,63524.0,63523.0,0.26611667]
[1727298546090,0.083354,63524.0,63523.0,0.26611552]
[1727298546487,0.083354,63524.0,63523.0,0.18779]
[1727298547091,0.083354,63524.0,63523.0,0.080714]
[1727298547287,0.19351429,63524.0,63523.0,0.080714]
[1727298547492,0.11680378,63524.0,63523.0,0.080714]
[1727298548288,0.22696407,63524.0,63523.0,0.080714]
[1727298548791,0.22693215,63524.0,63523.0,0.080714]
[1727298548985,0.11677186,63524.0,63523.0,0.080714]
[1727298549379,0.22693215,63524.0,63523.0,0.080714]
[1727298549591,0.11677186,63524.0,63523.0,0.080714]
[1727298550895,0.12936186,63524.0,63523.0,0.080714]
[1727298553892,0.12937773,63524.0,63523.0,0.080714]
[1727298554094,0.095944,63524.0,63523.0,0.15906513]
[1727298554297,0.095944,63524.0,63523.0,0.26620181]
[1727298554493,0.095944,63524.0,63523.0,0.15906513]
[1727298556102,0.095944,63524.0,63523.0,0.2662052]
[1727298556398,0.095944,63524.0,63523.0,0.26619937]
[1727298556594,0.095944,63524.0,63523.0,0.15906513]
[1727298558999,0.095944,63524.0,63523.0,0.080714]
[1727298560303,0.095944,63524.0,63523.0,0.15906513]
[1727298561295,0.01723,63524.0,63523.0,0.26617598]
[1727298561991,0.01723,63524.0,63523.0,0.080714]
[1727298564293,0.01723,63524.0,63523.0,0.159429]
[1727298564490,0.05068947,63524.0,63523.0,0.159429]
[1727298564695,0.01723,63524.0,63523.0,0.159429]
[1727298565301,0.086103,63533.0,63528.0,0.078709]
[1727298565302,0.03363076,63529.0,63528.0,0.078709]
[1727298566503,0.03963076,63529.0,63528.0,0.078709]
[1727298567206,0.04263076,63529.0,63528.0,0.078709]
[1727298568302,0.04263076,63529.0,63528.0,0.157418]
[1727298568506,0.04263076,63529.0,63528.0,0.518218]
[1727298568507,0.04188317,63529.0,63528.0,0.518218]
[1727298568800,0.009,63529.0,63528.0,0.72482233]
[1727298569001,0.0037,63536.0,63535.0,0.0787]
[1727298569198,0.078694,63540.0,63535.0,0.06258269]
[1727298569397,0.078691,63543.0,63542.0,0.078689]
[1727298569602,0.078691,63543.0,63542.0,0.074989]
[1727298570104,0.10148613,63543.0,63542.0,0.074989]
[1727298570803,0.11548613,63543.0,63542.0,0.075989]
[1727298571106,0.12448613,63543.0,63542.0,0.076989]
[1727298573805,0.12448613,63543.0,63542.0,0.002]
[1727298576809,0.11848613,63543.0,63542.0,0.002]
[1727298577011,0.11648613,63543.0,63542.0,0.002]
[1727298577307,0.23650239,63543.0,63542.0,0.002]
[1727298578399,0.23649698,63543.0,63542.0,0.002]
[1727298581707,0.23549698,63543.0,63542.0,0.002]
[1727298582208,0.23607698,63543.0,63542.0,0.001]
[1727298582418,0.24107698,63543.0,63542.0,0.001]
[1727298583507,0.078692,63542.0,63541.0,0.078692]
[1727298583706,0.19870285,63542.0,63541.0,0.078692]
[1727298584101,0.11185233,63542.0,63541.0,0.078692]
[1727298584308,0.078692,63542.0,63541.0,0.078692]
[1727298585213,0.080692,63542.0,63541.0,0.078692]
[1727298585713,0.084692,63542.0,63541.0,0.078692]
[1727298589216,0.006,63542.0,63536.0,0.3608]
[1727298589415,0.078706,63530.0,63529.0,0.0037]
[1727298589621,0.0787,63535.0,63527.0,0.03306121]
[1727298589809,0.3608,63532.0,63527.0,0.07999734]
[1727298590005,0.078709,63528.0,63527.0,0.03306121]
[1727298590718,0.070709,63528.0,63527.0,0.03306121]
[1727298592303,0.071709,63528.0,63527.0,0.04206121]
[1727298592517,0.071709,63528.0,63527.0,0.05006121]
[1727298594702,0.071709,63528.0,63527.0,0.12877121]
[1727298595113,0.001,63528.0,63527.0,0.12877121]
[1727298600112,0.0337025,63528.0,63527.0,0.12877121]
[1727298601322,0.001,63528.0,63527.0,0.12877121]
[1727298606225,0.001,63528.0,63527.0,0.20748121]
[1727298607419,0.001,63528.0,63527.0,0.12877121]
[1727298610218,1.151949,63528.0,63527.0,0.10675768]
[1727298610431,1.151949,63528.0,63517.0,0.0042]
[1727298610432,0.157438,63520.0,63517.0,0.0042]
[1727298610619,1.86883312,63520.0,63509.0,0.0074]
[1727298610821,1.86883312,63520.0,63507.0,0.365]
[1727298610822,0.078727,63513.0,63507.0,0.3608]
[1727298611026,0.078734,63508.0,63507.0,0.3608]
[1727298611231,0.078731,63511.0,63507.0,0.3608]
[1727298611529,0.01259,63510.0,63507.0,0.3608]
[1727298611725,0.00859,63510.0,63507.0,0.3608]
[1727298611929,0.087321,63510.0,63507.0,0.3608]
[1727298612529,0.078734,63508.0,63507.0,0.3608]
[1727298613323,0.078734,63508.0,63507.0,0.3738]
[1727298613927,0.078734,63508.0,63507.0,0.3608]
[1727298614228,0.080734,63508.0,63507.0,0.3728]
[1727298617327,0.080734,63508.0,63507.0,0.012]
[1727298617528,0.441534,63508.0,63507.0,0.012]
[1727298618232,0.080734,63508.0,63507.0,0.012]
[1727298619535,0.002,63508.0,63507.0,0.012]
[1727298619726,0.078729,63513.0,63507.0,0.44642851]
[1727298619928,0.078729,63512.0,63511.0,0.078729]
[1727298620127,0.078729,63512.0,63511.0,0.15235461]
[1727298620330,0.078729,63512.0,63511.0,0.19174514]
[1727298621444,0.04892753,63512.0,63511.0,0.19172703]
[1727298621625,0.002,63513.0,63511.0,0.19172703]
[1727298621922,0.002,63513.0,63511.0,0.10309785]
[1727298622633,0.002,63512.0,63511.0,0.11409785]
[1727298622827,0.002,63512.0,63511.0,0.22734522]
[1727298623235,0.078729,63512.0,63511.0,0.58914522]
[1727298623730,0.079729,63512.0,63511.0,0.58914522]
[1727298624034,0.080729,63512.0,63511.0,0.58914522]
[1727298624428,0.080729,63512.0,63511.0,0.65807842]
[1727298625828,0.080729,63512.0,63511.0,0.58914522]
[1727298627636,0.080729,63512.0,63511.0,0.22834522]
[1727298627843,0.080729,63512.0,63511.0,0.58914522]
[1727298628244,0.080729,63512.0,63511.0,0.090729]
[1727298631435,0.080729,63512.0,63503.0,0.0319]
[1727298631436,0.07874,63503.0,63498.0,0.0042]
[1727298631636,0.07874,63503.0,63487.0,0.3286]
[1727298631637,0.07875,63495.0,63494.0,0.0037]
[1727298631938,0.07875,63495.0,63487.0,0.0305]
[1727298631939,0.3608,63495.0,63487.0,0.0305]
[1727298632138,0.078751,63494.0,63487.0,0.0305]
[1727298632340,0.078758,63488.0,63487.0,0.0305]
[1727298632543,0.064758,63488.0,63487.0,0.0305]
[1727298633444,0.064758,63488.0,63487.0,0.0445]
[1727298633445,0.065758,63488.0,63487.0,0.0445]
[1727298633944,0.064758,63488.0,63487.0,0.0445]
[1727298634246,0.065758,63488.0,63487.0,0.0445]
[1727298635044,0.065758,63488.0,63487.0,0.0305]
[1727298637646,0.426558,63488.0,63487.0,0.0305]
[1727298644440,0.3618,63488.0,63487.0,0.0305]
[1727298644654,0.440558,63488.0,63487.0,0.0305]
[1727298645247,0.440558,63488.0,63487.0,0.10926]
[1727298646449,0.0037,63492.0,63491.0,0.078755]
[1727298646649,0.078753,63493.0,63492.0,0.078754]
[1727298646949,0.3608,63495.0,63494.0,0.078751]
[1727298648341,0.3678,63495.0,63494.0,0.078751]
[1727298649845,0.007,63495.0,63494.0,0.078751]
[1727298650754,0.004,63495.0,63494.0,0.078751]
[1727298651356,0.078749,63496.0,63495.0,0.07875]
[1727298653663,0.080749,63496.0,63495.0,0.07875]
[1727298654348,0.085749,63496.0,63495.0,0.07875]
[1727298661660,0.007,63496.0,63495.0,0.07875]
[1727298661853,0.3608,63500.0,63499.0,0.078745]
[1727298662252,0.3608,63500.0,63495.0,0.078749]
[1727298662253,0.83324,63500.0,63495.0,0.078749]
[1727298662566,0.078756,63490.0,63487.0,0.02436723]
[1727298662861,0.078756,63490.0,63485.0,0.02436723]
[1727298662862,0.078761,63486.0,63485.0,0.02436723]
[1727298663160,1.5,63489.0,63484.0,0.0323]
[1727298663161,1.50084,63489.0,63484.0,0.0323]
[1727298663363,0.078762,63485.0,63484.0,0.0323]
[1727298664558,0.079762,63485.0,63484.0,0.0343]
[1727298665050,0.080762,63485.0,63484.0,0.0343]
[1727298678175,0.080762,63485.0,63484.0,0.113063]
[1727298687472,0.441562,63485.0,63484.0,0.113063]
[1727298689888,0.58346114,63485.0,63484.0,0.113063]
[1727298690487,0.22266114,63485.0,63484.0,0.113063]
[1727298690678,0.58346114,63485.0,63484.0,0.113063]
[1727298690877,0.22266114,63485.0,63484.0,0.113063]
[1727298691078,0.58346114,63485.0,63484.0,0.113063]
[1727298691285,0.51195999,63485.0,63484.0,0.113063]
[1727298692285,0.63776354,63485.0,63484.0,0.113063]
[1727298692483,0.27696354,63485.0,63484.0,0.113063]
[1727298692687,0.63776354,63485.0,63484.0,0.113063]
[1727298693689,0.27696354,63485.0,63484.0,0.113063]
[1727298693884,0.63776354,63485.0,63484.0,0.113063]
[1727298694591,0.63780425,63485.0,63484.0,0.113063]
[1727298696588,0.27700425,63485.0,63484.0,0.113063]
[1727298696790,0.63780425,63485.0,63484.0,0.113063]
[1727298697880,0.56736555,63485.0,63484.0,0.17566865]
[1727298698084,0.441562,63485.0,63484.0,0.17566865]
[1727298698486,0.080762,63485.0,63484.0,0.17566865]
[1727298698686,0.441562,63485.0,63484.0,0.17566865]
[1727298698985,1.671646,63485.0,63484.0,0.06472443]
[1727298699190,0.078767,63481.0,63480.0,0.032]
[1727298699392,0.157534,63481.0,63480.0,0.032]
[1727298699793,0.078767,63481.0,63480.0,0.032]
[1727298700690,0.079767,63481.0,63480.0,0.034]
[1727298700891,0.080767,63481.0,63480.0,0.034]
[1727298702203,0.441567,63481.0,63480.0,0.034]
[1727298704995,0.47366483,63481.0,63480.0,0.034]
[1727298705892,0.11286483,63481.0,63480.0,0.034]
[1727298706304,0.4964123,63481.0,63480.0,0.034]
[1727298708311,0.1356123,63481.0,63480.0,0.034]
[1727298708495,0.4964123,63481.0,63480.0,0.034]
[1727298709801,0.03409783,63481.0,63480.0,0.112768]
[1727298710002,0.078763,63484.0,63483.0,0.078765]
[1727298711307,0.079763,63484.0,63483.0,0.078765]
[1727298712008,0.080763,63484.0,63483.0,0.078765]
[1727298717621,0.002,63484.0,63483.0,0.078765]
[1727298717915,0.002,63484.0,63483.0,0.15753]
[1727298718312,0.3608,63487.0,63486.0,0.078761]
[1727298719916,0.55858939,63487.0,63486.0,0.080761]
[1727298721310,0.19778939,63487.0,63486.0,0.080761]
[1727298722414,0.07199018,63487.0,63486.0,0.080761]
[1727298724723,0.03341684,63487.0,63486.0,0.080761]
[1727298727612,0.07199007,63487.0,63486.0,0.080761]
[1727298728020,0.001,63487.0,63486.0,0.080761]
[1727298735421,0.03957207,63487.0,63486.0,0.080761]
[1727298735728,0.07198739,63487.0,63486.0,0.080761]
[1727298736034,0.07198987,63487.0,63486.0,0.080761]
[1727298740929,0.0334178,63487.0,63486.0,0.080761]
[1727298742243,0.07202718,63487.0,63486.0,0.080761]
[1727298743039,0.001,63487.0,63486.0,0.12773131]
[1727298745838,0.001,63487.0,63486.0,0.080761]
[1727298755746,0.07976,63487.0,63486.0,0.080761]
[1727298757252,0.15081553,63487.0,63486.0,0.080761]
[1727298759242,0.27661908,63487.0,63486.0,0.080761]
[1727298759445,0.19916483,63487.0,63486.0,0.080761]
[1727298759651,0.15081553,63487.0,63486.0,0.080761]
[1727298761937,0.07976,63487.0,63486.0,0.080761]
[1727298762151,0.15074599,63487.0,63486.0,0.080761]
[1727298763148,0.2768329,63487.0,63486.0,0.080761]
[1727298763355,0.15074599,63487.0,63486.0,0.080761]
[1727298764340,0.2768329,63487.0,63486.0,0.080761]
[1727298765252,0.07976,63487.0,63486.0,0.080761]
[1727298765944,0.07976,63487.0,63486.0,0.002]
[1727298769749,0.07976,63487.0,63486.0,0.080761]
[1727298771849,0.19976,63487.0,63486.0,0.080761]
[1727298772241,0.31090927,63487.0,63486.0,0.002]
[1727298774847,0.31090927,63487.0,63486.0,0.080761]
[1727298776055,0.34948299,63487.0,63486.0,0.080761]
[1727298777053,0.34947472,63487.0,63486.0,0.080761]
[1727298780158,0.27852,63487.0,63486.0,0.080761]
[1727298782750,0.19976,63487.0,63486.0,0.080761]
[1727298787255,0.27073095,63487.0,63486.0,0.080761]
[1727298790564,0.2707343,63487.0,63486.0,0.080761]
[1727298790965,0.2707343,63487.0,63486.0,0.002]
[1727298794072,0.1507343,63487.0,63486.0,0.002]
[1727298795275,0.07976,63487.0,63486.0,0.002]
[1727298797665,0.07976,63487.0,63486.0,0.08028604]
[1727298805782,0.07976,63487.0,63486.0,0.002]
[1727298807383,0.15852,63487.0,63486.0,0.002]
[1727298810978,0.34839801,63487.0,63486.0,0.002]
[1727298811175,0.41945442,63487.0,63486.0,0.002]
[1727298812084,0.22957641,63487.0,63486.0,0.002]
[1727298812986,0.15081641,63487.0,63486.0,0.002]
[1727298818190,0.07976,63487.0,63486.0,0.1099402]
[1727298818486,0.07976,63487.0,63486.0,0.18834975]
[1727298818988,0.07976,63487.0,63486.0,0.26711075]
[1727298819682,0.07976,63487.0,63486.0,0.29850442]
[1727298823288,0.07976,63487.0,63486.0,0.22009487]
[1727298823489,0.07976,63487.0,63486.0,0.29849364]
[1727298824691,0.07976,63487.0,63486.0,0.29846622]
[1727298824988,0.07976,63487.0,63486.0,0.112161]
[1727298824989,0.15087434,63487.0,63486.0,0.112161]
[1727298825186,0.07211434,63487.0,63486.0,0.190922]
[1727298825380,0.0037,63493.0,63487.0,0.07876]
[1727298825689,0.03276173,63492.0,63491.0,0.2232479]
[1727298825889,0.03276173,63492.0,63491.0,0.38101118]
[1727298826191,0.198746,63498.0,63496.0,0.078749]
[1727298826192,0.32480316,63498.0,63496.0,0.078749]
[1727298826485,0.32480316,63498.0,63488.0,0.031]
[1727298826486,0.078746,63498.0,63497.0,0.078747]
[1727298827283,0.084746,63498.0,63497.0,0.078747]
[1727298828080,0.085746,63498.0,63497.0,0.078747]
[1727298828586,0.090746,63498.0,63497.0,0.078747]
[1727298829085,0.210746,63498.0,63497.0,0.078747]
[1727298840302,0.012,63498.0,63497.0,0.078747]
[1727298842496,0.0037,63504.0,63503.0,0.07874]
[1727298842690,0.440375,63508.0,63503.0,0.12]
[1727298842999,0.439535,63508.0,63503.0,0.12]
[1727298843198,0.439535,63508.0,63504.0,0.03]
[1727298843395,0.46211076,63508.0,63506.0,0.078736]
[1727298844402,0.078735,63507.0,63506.0,0.078736]
[1727298844898,0.078735,63507.0,63506.0,0.079736]
[1727298845612,0.092735,63507.0,63506.0,0.079736]
[1727298846292,0.106735,63507.0,63506.0,0.080736]
[1727298848103,0.14529583,63507.0,63506.0,0.080736]
[1727298848301,0.14529583,63507.0,63501.0,0.3608]
[1727298848302,0.62609583,63507.0,63501.0,0.38521416]
[1727298848607,0.62609583,63507.0,63501.0,0.3608]
[1727298848608,0.198741,63502.0,63501.0,0.3608]
[1727298848807,0.23730183,63502.0,63501.0,0.3608]
[1727298850608,0.078742,63501.0,63497.0,0.3608]
[1727298850901,0.12,63498.0,63497.0,0.3608]
[1727298851098,0.15856083,63498.0,63497.0,0.3608]
[1727298851298,0.28428466,63498.0,63497.0,0.3608]
[1727298851725,0.36303066,63498.0,63497.0,0.3608]
[1727298852510,0.24130683,63498.0,63497.0,0.3608]
[1727298852806,0.24830683,63498.0,63497.0,0.3608]
[1727298854995,0.209746,63498.0,63497.0,0.3608]
[1727298855406,0.209746,63498.0,63497.0,0.48645019]
[1727298855812,0.209746,63498.0,63497.0,0.4865109]
[1727298857108,0.089746,63498.0,63497.0,0.4865109]
[1727298857303,0.089746,63498.0,63497.0,0.439547]
[1727298867111,0.209746,63498.0,63497.0,0.439547]
[1727298869708,0.209746,63498.0,63497.0,0.078747]
[1727298869908,0.209746,63498.0,63497.0,0.439547]
[1727298870104,0.209746,63498.0,63497.0,0.51794577]
[1727298870718,0.209746,63498.0,63497.0,0.62674115]
[1727298872209,0.209746,63498.0,63497.0,0.51794577]
[1727298872418,0.209746,63498.0,63497.0,0.62672818]
[1727298874919,0.209746,63498.0,63497.0,0.54832941]
[1727298875113,0.209746,63498.0,63497.0,0.18752941]
[1727298875423,0.209746,63498.0,63497.0,0.54832941]
[1727298875605,0.209746,63498.0,63497.0,0.439547]
[1727298876620,0.209746,63498.0,63497.0,0.51786151]
[1727298876814,0.209746,63498.0,63497.0,0.439547]
[1727298877015,0.209746,63498.0,63497.0,0.51786151]
[1727298877412,0.209746,63498.0,63497.0,0.62682607]
[1727298877925,0.209746,63498.0,63497.0,0.51786151]
[1727298878123,0.24831202,63498.0,63497.0,0.439547]
[1727298885217,0.209746,63498.0,63497.0,0.54856134]
[1727298885928,1.56424,63498.0,63493.0,0.11841265]
[1727298886128,0.15751,63491.0,63486.0,0.12581265]
[1727298886421,0.078763,63484.0,63483.0,0.078764]
[1727298886621,0.15935558,63484.0,63483.0,0.078764]
[1727298888026,0.16135558,63484.0,63483.0,0.087764]
[1727298891016,0.122,63484.0,63483.0,0.087764]
[1727298891416,0.002,63484.0,63483.0,0.27033675]
[1727298891826,0.002,63484.0,63483.0,0.207764]
[1727298892328,0.002,63484.0,63483.0,0.27032725]
[1727298893017,0.002,63484.0,63483.0,0.41447119]
[1727298893425,0.3608,63486.0,63485.0,0.078762]
[1727298894420,0.3618,63486.0,63485.0,0.085762]
[1727298896127,0.3628,63486.0,63485.0,0.088762]
[1727298898531,0.3628,63486.0,63485.0,0.22649267]
[1727298898728,0.0037,63490.0,63489.0,0.078757]
[1727298898930,0.3608,63494.0,63493.0,0.078752]
[1727298898931,0.3645,63494.0,63493.0,0.078752]
[1727298899132,0.3608,63494.0,63493.0,0.14128064]
[1727298899337,0.4808,63494.0,63493.0,0.078752]
[1727298900129,0.559551,63494.0,63493.0,0.078752]
[1727298900325,0.439551,63494.0,63493.0,0.078752]
[1727298901627,0.442551,63494.0,63493.0,0.078752]
[1727298903442,0.3638,63494.0,63493.0,0.078752]
[1727298904245,0.003,63494.0,63493.0,0.078752]
[1727298907134,0.003,63494.0,63493.0,0.198752]
[1727298912940,0.003,63494.0,63493.0,0.40541949]
[1727298913139,0.003,63494.0,63493.0,0.26770279]
[1727298913339,0.003,63494.0,63493.0,0.40543492]
[1727298916440,0.003,63494.0,63493.0,0.31678306]
[1727298916645,0.003,63494.0,63493.0,0.40543337]
[1727298919748,0.003,63494.0,63493.0,0.40543445]
[1727298919948,0.003,63494.0,63493.0,0.48418645]
[1727298920255,0.0037,63497.0,63496.0,0.078749]
[1727298920448,0.09452752,63498.0,63497.0,0.078747]
[1727298920645,0.50323282,63499.0,63498.0,0.078746]
[1727298920646,0.50403282,63499.0,63498.0,0.078746]
[1727298920848,0.50323282,63499.0,63498.0,0.078746]
[1727298921653,0.50823282,63499.0,63498.0,0.079746]
[1727298922548,0.51623282,63499.0,63498.0,0.079746]
[1727298923142,0.15543282,63499.0,63498.0,0.079746]
[1727298923342,1.58867282,63499.0,63498.0,0.001]
[1727298923546,0.078758,63489.0,63487.0,0.03186633]
[1727298923746,0.1522,63488.0,63484.0,0.02446633]
[1727298923956,0.078761,63486.0,63483.0,0.078764]
[1727298924864,0.068761,63486.0,63483.0,0.078764]
[1727298925560,0.069761,63486.0,63485.0,0.05296124]
[1727298926363,0.070761,63486.0,63485.0,0.008]
[1727298930545,0.431561,63486.0,63485.0,0.008]
[1727298931063,0.09312903,63486.0,63485.0,0.008]
[1727298931258,0.45392903,63486.0,63485.0,0.008]
[1727298935364,0.54823166,63486.0,63485.0,0.008]
[1727298935758,0.09312903,63486.0,63485.0,0.008]
[1727298935957,0.45392903,63486.0,63485.0,0.008]
[1727298936371,0.5482268,63486.0,63485.0,0.008]
[1727298938064,0.5482268,63486.0,63485.0,0.086762]
[1727298938276,0.6682268,63486.0,63485.0,0.086762]
[1727298938573,0.50516803,63486.0,63485.0,0.14941618]
[1727298939167,0.58392903,63486.0,63485.0,0.14941618]
[1727298941065,0.22312903,63486.0,63485.0,0.14941618]
[1727298941271,0.58392903,63486.0,63485.0,0.14941618]